Cogmind - Beta 13 @@@ ROGUE MODE // 2024.04.26 @ 14:27:16 Player: Ronin_tempest Result: Destroyed by RE-49Q(R) with Subdweller Machine Gun Performance ------------- Evolutions (0) 0 Regions Visited (2) 400 Robots Destroyed (18) 90 Value Destroyed (467) 467 Prototype IDs (0) 0 Alien Tech Used (0) 0 Bonus (0) 0 TOTAL SCORE: 957 Bonus ------- None Cogmind --------- Core Integrity 0/250 Matter 216/300 Energy 250/250 System Corruption 0% Temperature Cool (0) Movement Rolling (115) Ox1 Location -10/Subcaves Parts ------- > --- POWER (1) -------- Ion Engine > --- PROPULSION (2) --- Compact Wheel Compact Wheel > --- UTILITY (2) ------ Large Storage Unit Medium Armor Plating > --- WEAPON (2) ------- Heavy Hammer > --- INVENTORY (15) --- Compact Wheel Compact Wheel Compact Wheel Subdweller Monowheel Improved Heat Sink Cooling System Medium Armor Plating Scrap Shield EM Pulse Gun Particle Gun Particle Gun Light Cannon Peak State ------------ > --- POWER ------------ Light Nuclear Core > --- PROPULSION ------- Aluminum Leg Aluminum Leg > --- UTILITY ---------- Improved Heat Sink Small Storage Unit > --- WEAPON ----------- Particle Gun Particle Gun > --- INVENTORY -------- Ion Engine Compact Wheel Compact Wheel Cooling System EM Pulse Gun Small Laser Small Laser Particle Gun [Rating: 14] Favorites ----------- Power Light Nuclear Core Engine Ion Engine Power Core Light Nuclear Core Propulsion Compact Wheel Leg Aluminum Leg Wheel Compact Wheel Utility Large Storage Unit Device Improved Terrain Scanner Storage Large Storage Unit Protection Light Armor Plating Weapon Particle Gun Energy Gun Particle Gun Ballistic Gun Assault Rifle Ballistic Cannon Light Cannon Impact Weapon Heavy Hammer Build | -11 -10 -10 ------- Run | Yrd Mat Sub Slots Evolved . | . . . Power . | . . . Propulsion . | . . . Utility . | . . . Weapon . | . . . Parts Attached 26 | 1 18 7 Power 4 | . 3 1 Engine 2 | . 1 1 Core 2 | . 2 . Reactor . | . . . Propulsion 5 | . 4 1 Treads . | . . . Leg 1 | . 1 . Wheel 4 | . 3 1 Hover . | . . . Flight . | . . . Utility 9 | 1 6 2 Device 2 | 1 1 . Storage 2 | . 2 . Processor . | . . . Hackware . | . . . Protection 5 | . 3 2 Artifact . | . . . Weapon 8 | . 5 3 Energy Gun 5 | . 4 1 Energy Cannon . | . . . Ballistic Gun . | . . . Ballistic Cannon 1 | . 1 . Launcher . | . . . Special Weapon . | . . . Impact Weapon 2 | . . 2 Slashing Weapon . | . . . Piercing Weapon . | . . . Special Melee Weapon . | . . . Unidentified Prototypes . | . . . Parts Lost 7 | . 2 5 Power 1 | . . 1 Propulsion 2 | . 1 1 Utility 3 | . 1 2 Weapon 1 | . . 1 Highest Loss Streak 1 | . 1 1 To Critical Strikes . | . . . Average Slot Usage (%) 99 | . 98 99 Engine 4 | . 1 9 Core 9 | . 12 4 Leg 6 | . 9 . Wheel 21 | . 18 27 Device 1 | . 2 . Storage 14 | . 14 14 Protection 11 | . 11 13 Energy Gun 20 | . 24 10 Ballistic Gun 1 | . 1 . Ballistic Cannon 4 | . . 13 Impact Weapon 1 | . . 3 Naked Turns . | . . . Heaviest Build 38 | 14 38 38 Greatest Support 32 | 20 32 32 Greatest Overweight (x) 1 | . 1 1 Average Overweight (x) . | . . 1 Largest Inventory Capacity 15 | 8 15 15 Average Capacity 13 | 8 12 15 Most Carried 15 | 6 15 14 Average Carried 11 | 6 11 12 Final Capacity 15 | 8 15 15 Final Carried 14 | 6 14 13 Class Distribution -------------------- 95% | Mutant 4% | Scavenger-Mutant Dominant Class ---------------- Mutant | -10/Materials Mutant | -10/Subcaves Resources | -11 -10 -10 ----------- Run | Yrd Mat Sub Matter Collected 514 | 213 218 83 Remotely . | . . . Salvage Created 533 | 14 423 96 Parts 40 | 5 31 4 Haulers Intercepted 1 | . 1 . Recyclers Shooed 1 | . 1 . Parts Field Recycled . | . . . Retrieved Matter . | . . . Parts Self-Destructed 7 | . . 7 Prevented . | . . . Kills | -11 -10 -10 ------- Run | Yrd Mat Sub Combat Hostiles Destroyed 13 | . 9 4 Guns 10 | . 9 1 Cannons 3 | . . 3 Classes Destroyed 8 | 1 6 1 Tunneler 1 | 1 . . Hauler 1 | . 1 . Recycler 1 | . 1 . Operator 1 | . 1 . Watcher 1 | . 1 . Swarmer 3 | . 3 . Grunt 6 | . 6 . Subdweller 4 | . . 4 Best Kill Streak 3 | 1 3 1 Combat Bots Only 3 | . 3 1 Max Kills in Single Turn 1 | 1 1 1 Gunslinging . | . . . Exploded . | . . . Melee . | . . . Uniques/NPCs Destroyed . | . . . Combat | -11 -10 -10 -------- Run | Yrd Mat Sub Hostile Shots Fired 92 | . 48 44 Missed 16 | . 8 8 Damage Taken 1282 | . 417 865 Core 267 | . 68 199 Absorbed by Shields . | . . . Core Remaining (%) 100 | 100 . . Volleys Fired 83 | 1 52 30 Largest 2 | 2 2 2 Hottest 130 | 60 130 100 Shots Fired 158 | 2 104 52 Gun 130 | 2 104 24 Cannon 28 | . . 28 Launcher . | . . . Special . | . . . Kinetic 48 | 1 19 28 Thermal 110 | 1 85 24 Explosive . | . . . Electromagnetic . | . . . Robot Hit Streak 19 | 1 7 19 Robot Miss Streak 3 | . 3 1 Penetration Max . | . . . Secondary Targets 2 | . 2 . Max Gunslinging Chain 1 | . 1 . Shots Hit Robots 112 | 1 69 42 Core Hits 33 | 1 23 9 Critical Kills . | . . . Critical Parts Destroyed . | . . . Critical Strikes 5 | . 3 2 Burn 3 | . 3 . Blast 1 | . . 1 Smash 1 | . . 1 Melee Attacks 15 | . . 15 Impact 15 | . . 15 Slashing . | . . . Piercing . | . . . Sneak Attacks . | . . . Combat Hostiles . | . . . Follow-up Attacks . | . . . Damage Inflicted 1876 | 12 1090 774 Guns 1368 | 12 1090 266 Cannons 338 | . . 338 Explosions . | . . . Melee 170 | . . 170 Ramming . | . . . Kinetic 507 | . 169 338 Thermal 1199 | 12 921 266 Explosive . | . . . Electromagnetic . | . . . Impact 170 | . . 170 Slashing . | . . . Piercing . | . . . Highest Corruption . | . . . Average Corruption . | . . . Corruption Purged . | . . . Corruption Blocked . | . . . Overload Shots . | . . . Overflow Damage . | . . . Projectiles . | . . . Explosions . | . . . Melee . | . . . Knockbacks 7 | . . 7 Impact . | . . . Kinetic 7 | . . 7 Secondary . | . . . Self-Inflicted Damage . | . . . Shots . | . . . Rammed . | . . . Targets Rammed . | . . . Kicked . | . . . Crushed . | . . . Highest Temperature 351 | . 351 6 Average Temperature 126 | . 132 2 Received Heat Transfer 258 | . 174 84 Effects 1 | . 1 . Shutdowns 1 | . 1 . Siege Activations . | . . . Robots Corrupted . | . . . Combat Hostiles . | . . . Parts Fried . | . . . Impact Corruptions . | . . . Robots Melted . | . . . Combat Hostiles . | . . . Parts Melted 1 | . 1 . Heat Transferred 3096 | 25 2442 629 Parts Sabotaged . | . . . Parts Stolen . | . . . Parts Stripped . | . . . Power Chain Reactions . | . . . Alert | -11 -10 -10 ------- Run | Yrd Mat Sub Peak Influence 169 | 5 169 . Initial 3 | . 3 . Average 46 | 3 46 . Maximum Alert Level . | . . . Low Security (%) 100 | 100 100 . Level 1 . | . . . Level 2 . | . . . Level 3 . | . . . Level 4 . | . . . Level 5 . | . . . High Security . | . . . Max Security . | . . . Squads Dispatched 1 | . 1 . Investigation . | . . . Extermination . | . . . Reinforcement 1 | . 1 . Assault . | . . . Garrison . | . . . Intercept . | . . . Searches Triggered . | . . . Construction Impeded . | . . . Haulers Reinforced . | . . . Active Scanning Responses . | . . . Cargo Convoy Interrupts . | . . . Stealth | -11 -10 -10 --------- Run | Yrd Mat Sub Distress Signals 1 | . 1 . Communications Jammed . | . . . Distress Signals . | . . . Times Spotted 28 | . 22 6 Peak Tracking Total 3 | . 3 2 Tactical Retreats 1 | . 1 . Traps | -11 -10 -10 ------- Run | Yrd Mat Sub Traps Triggered 3 | . 1 2 Indirectly . | . . . Trap Hack Attempts . | . . . Triggered . | . . . Disarmed . | . . . Reprogrammed . | . . . Reused . | . . . Traps Extracted . | . . . Installed . | . . . Triggered . | . . . Machines | -11 -10 -10 ---------- Run | Yrd Mat Sub Machines Disabled . | . . . Max in Single Turn . | . . . Machines Repaired . | . . . Machines Dismantled . | . . . Machines Sabotaged . | . . . Overloaded Fab Kills . | . . . Hacking | -11 -10 -10 --------- Run | Yrd Mat Sub Machines Accessed 8 | . 8 . Terminals 7 | . 7 . Fabricators . | . . . Repair Stations 1 | . 1 . Recycling Units . | . . . Scanalyzers . | . . . Garrison Access . | . . . Total Hacks 23 | . 23 . Successful 12 | . 12 . Failed 11 | . 11 . Catastrophic 1 | . 1 . Database Lockouts . | . . . Manual 13 | . 13 . Terminals 20 | . 20 . Fabricators . | . . . Repair Stations 3 | . 3 . Recycling Units . | . . . Scanalyzers . | . . . Garrison Access . | . . . Terminal Hacks 8 | . 8 . Record 1 | . 1 . Robot Analysis 2 | . 2 . Emergency Access Points 1 | . 1 . Locate Traps 1 | . 1 . Registered Components 1 | . 1 . Zone Layout 2 | . 2 . Fabricator Hacks . | . . . Repair Station Hacks 1 | . 1 . Scan Component 1 | . 1 . Recycling Unit Hacks . | . . . Scanalyzer . | . . . Garrison Access Hacks . | . . . Unauthorized Hacks 3 | . 3 . Terminals 3 | . 3 . Track 1 | . 1 . Assimilate 1 | . 1 . Botnet 1 | . 1 . Fabricators . | . . . Repair Stations . | . . . Recycling Units . | . . . Scanalyzers . | . . . Garrison Access . | . . . Data Cores Recovered . | . . . Used . | . . . Hacking Detections 7 | . 7 . Full Trace Events . | . . . Feedback Events . | . . . Feedback Blocked . | . . . Robot Schematics Acquired . | . . . Robots Built . | . . . Authchips . | . . . Time . | . . . Total Robot Build Rating . | . . . Part Schematics Acquired . | . . . Parts Built . | . . . Authchips . | . . . Time . | . . . Total Part Build Rating . | . . . Parts Repaired . | . . . Time . | . . . Parts Recycled . | . . . Recycled Matter . | . . . Retrieved Matter . | . . . Retrieved Components . | . . . Parts Scanalyzed . | . . . Part Schematics Acquired . | . . . Parts Damaged . | . . . Bothacking | -11 -10 -10 ------------ Run | Yrd Mat Sub Used RIF Installer . | . . . Robots Hacked . | . . . Non-combat . | . . . Combat . | . . . Robot Hacks Applied . | . . . Relay Couplers Released . | . . . Fabnet Peak Effective % . | . . . Robots Rewired . | . . . Allies Hacked . | . . . Hacks Repelled . | . . . Allies | -11 -10 -10 -------- Run | Yrd Mat Sub Total Allies . | . . . Largest Group . | . . . Highest-Rated Group . | . . . Highest-Rated Ally . | . . . Total Orders . | . . . Ally Attacks . | . . . Total Damage . | . . . Kills . | . . . Allies Corrupted . | . . . Allies Melted . | . . . Intel | -11 -10 -10 ------- Run | Yrd Mat Sub Robot Analysis Total 2 | . 2 . Derelict Logs Recovered 2 | . . 2 Drone Launches . | . . . Drone Recoveries . | . . . Exploration | -11 -10 -10 ------------- Run | Yrd Mat Sub Turns Passed 2639 | 18 1827 794 Spaces Moved 1399 | 10 1009 380 Core . | . . . Treads . | . . . Legs 306 | 10 296 . Wheels 1093 | . 713 380 Hover . | . . . Flight . | . . . Fastest Speed 100 | 120 100 115 Average Speed 121 | 120 123 115 Slowest Speed 190 | 120 190 115 Overloaded Moves . | . . . Propulsion Burnouts . | . . . Robots Hopped . | . . . Cave-ins Triggered . | . . . Exploration Rate (%) 42 | 2 99 27 Regions Visited 2 Branch Regions 1 Pre-discovered Areas . | . . . Known Exits Taken . | . . . Unknown Exits Taken 2 | 1 1 . Scrap Searched 1 | . . 1 Spaces Dug . | . . . Terrain Destroyed . | . . . Melee . | . . . Projectile . | . . . AOE . | . . . Terrain Rammed . | . . . Walls Destroyed . | . . . Machines Disabled . | . . . Actions | -11 -10 -10 --------- Run | Yrd Mat Sub Total 2157 | 13 1488 656 Wait 587 | 2 363 222 Move 1397 | 9 1008 380 Hop . | . . . Pick Up 23 | . 21 2 Fast Attach 12 | 1 11 . Attach 5 | . 1 4 Detach 5 | . 5 . Swap 9 | . 6 3 Drop 21 | . 21 . Fire 83 | 1 52 30 Melee 15 | . . 15 Ram . | . . . Kick . | . . . Crush . | . . . Escape Stasis . | . . . Rewire . | . . . Trap . | . . . Miscellaneous . | . . . Route ------- -11/Scrapyard -10/Materials (discovered 6 exits: [*Mat x3] / [*Min x2] / [*Sub]) -10/Subcaves History --------- Turn | Location | Event 1 | -11/Scrapyard | Discovered new exit (range 3) 19 | -11/Scrapyard | Entered Materials 315 | -10/Materials | Discovered new exit (range 10) 315 | -10/Materials | Discovered new exit (range 14) 683 | -10/Materials | Build established: Mutant 911 | -10/Materials | Discovered new exit (range 15) 1220 | -10/Materials | Discovered new exit (range 12) 1601 | -10/Materials | Discovered new exit (range 7) 1651 | -10/Materials | Discovered new exit (range 16) 1846 | -10/Materials | Entered Subcaves 1851 | -10/Subcaves | Learned Materials stockpile data 1852 | -10/Subcaves | A swath of the cavern ceiling suddenly collapsed 1884 | -10/Subcaves | Shifting Twisted Machinery released Sub. Optics 1904 | -10/Subcaves | Shifting Twisted Machinery released Battle Rifle 2370 | -10/Subcaves | Core integrity fell below 50% 2473 | -10/Subcaves | Learned Materials terminal intel 2552 | -10/Subcaves | Shifting Twisted Machinery released Mak. Laser 2554 | -10/Subcaves | Shifting Twisted Machinery released Scrap Shield 2637 | -10/Subcaves | Core integrity fell below 20% 2640 | -10/Subcaves | Destroyed by RE-49Q(R) with Subdweller Machine Gun Last Messages --------------- 02398_ Critical hit (Destroy). 02399_ DK-EPW(R) knocked back. 02400_ Med. Armor Plating destroyed. 02403_ DK-EPW(R) knocked back. 02409_ DK-EPW(R) destroyed. 02411_ Subatomizers dissect the Sub. Optics. 02415_ Acquired Sub. Monowheel. 02416_ Acquired 7 matter. 02433_ 4W-I97(u) tweaks Twisted Machinery. 02453_ Subatomizers dissect the Sub. Optics. 02463_ 4W-I97(u) tweaks Twisted Machinery. 02473_ Acquired derelict log, extracted data. Data stored: Materials terminal intel. Mak. Laser falls loose from the Twisted Machinery. Scrap Shield falls loose from the Twisted Machinery. 02557_ Acquired Scrap Shield. 02625_ OL-YIQ(R) suffers critical hit (Smash). 02634_ Lgt. Cannon destroyed. Map ----- +----------------------------------------------------+ | | | | | | | | | | | | | | | | | ?????????????????????????????????????????????????? | | ?????????????????????????????????????????????????? | | ?????????????????????????????????????????????????? | | ?????????????????????????????????????????????????? | | ?????????????????????????????????????????????????? | | ?????????????????????????????????????????????????? | | ?????????????????????????????????????????????????? | | ?????????????????????????????????????????????????? | | ?????????????????????????????????????????????????? | | ?????????????????????????????????????????????????? | | ?????????????????????????????????????????????????? | | ?????????????????????????????????????????????????? | | ?????????????????????????????????????????????????? | | ?????????????????????????????????????????######### | | ???????????????????????#####?###??#####??# # | | ????????????????????#### R ### #### #### ##### # | | ??????????????????### R # ## #???# # | | ??????????????????#"" @ # ##???# # | | ?????????????????#""" ### ### #????# # | | ?????????????????#""" ???# ##?## #???## | | ?????????????????### ????# #???## ##### | | ?????????????????????????# #####??## | | ?????????????????????#### #?## #### ## ### | | ?????????????????????# # # ## #####?? | | ???????????????????? ##???? | | ???????????????????? ## # ####? | | ??????????????????? ??####### ### ###### ## | | ??????????????????????????????#### #???### | | ???????????????????????????????## #?????# | | ???????????????????????????????# #?????## ## | | ????????????????????????????# ## ##?########### | | ????????????????????????????# #### #### | | ????????????????????????????# | | ????????????????????????????# ## | | ??????????????????????????# ######### # | | ??????????????????????????## ##???????##### | | ???????????????????????????#" #????????????? | | ?????????????????????????? ????????????? | | ???????????????????????? ##" ????????????? | | ????????????????????????#??# ???????????? | | ???????????????????????????## ???????????? | | ????????????????????????????##### ???????????? | +----------------------------------------------------+ Best States ------------- Heat Dissipation 39 Energy Generation 14 Energy Capacity 250 Matter Stores 300 Matter Capacity 300 Sight Range 16 Terrain Scan Range 16 Terrain Scan Density 10 Armor Coverage 225 Evasion (%) 55 Item Schematics ----------------- None Robot Schematics ------------------ None Fabricated ------------ Nothing Alien Tech Used ----------------- None Achievements -------------- None Challenges ------------ None Game ------ Seed BiocellMobileInitializer Manual? 0 Play Time 00:22:38 Cumulative 48.0 hours Start 2024.04.26 @ 14:04:58 End 2024.04.26 @ 14:27:16 Sessions 1 Manual Loads 0 Difficulty Rogue Special Mode None Game No. 40 Rogue 40 Adventurer 0 Explorer 0 Win Type - Total 0 Types 0/0/0/0/0/0/0/0/0 Lore% 21 Gallery% 32 Achievement% 30 Wizard Run 0 Options --------- Layout 1 ASCII 0 Keyboard 1 Movement Numpad Keybinds 1 Fullscreen 1 Font 24/Smallcaps Map View 50x35 Zoom Use 0% Tactical HUD 1 Map Filters NONE Filters NONE Steam 1 RUN: ebb104be-a4a1-45cd-8efd-e807136b4fbd